[Event "Dutch Open-ch 2019"]
[Site "Dieren"]
[Date "2019.07.27"]
[Round "5.13"]
[White "Neelotpal, Das"]
[Black "Vogel, Jaap"]
[Result "1/2-1/2"]
[ECO "A10"]
[WhiteElo "2406"]
[BlackElo "2126"]
[Annotator "NA"]
[PlyCount "77"]
[EventDate "2019.07.23"]
[EventType "swiss"]
[EventCountry "NED"]
[SourceTitle "playchess.com"]
[Source "ChessBase"]
[SourceQuality "1"]
[TimeControl "40/5400+30:1800+30"]

1. Nf3 {[%emt 0:00:47]} e6 {[%emt 0:00:00]} 2. c4 {[%emt 0:00:17]} f5 {[%emt 0:00:08]} 3. g3 {[%emt 0:00:17]} Nf6 {[%emt 0:00:20]} 4. Bg2 {[%emt 0:00:03]} c6 {[%emt 0:00:16]} 5. O-O {[%emt 0:00:17]} d5 {[%emt 0:00:12]} 6. b3 {[%emt 0:00:06]} Bd6 {[%emt 0:01:24]} 7. Bb2 {[%emt 0:00:08]} O-O {[%emt 0:00:33]} 8. d3 {[%emt 0:00:03]} Nbd7 {[%emt 0:14:14]} 9. Nc3 {[%emt 0:03:48]} Ne5 {[%emt 0:09:20]} 10. e3 {[%emt 0:14:02]} Nxf3+ {[%emt 0:12:41]} 11. Bxf3 {[%emt 0:03:05]} Bd7 {[%emt 0:02:44]} 12. Qe2 {[%emt 0:00:26]} Qc7 {[%emt 0:09:17]} 13. Rac1 {[%emt 0:04:28]} dxc4 {[%emt 0:06:34]} 14. dxc4 {[%emt 0:03:25]} Be5 {[%emt 0:05:16]} 15. Bg2 {[%emt 0:03:17]} Be8 {[%emt 0:02:37]} 16. Bf3 {[%emt 0:10:58]} Bf7 {[%emt 0:03:34]} 17. b4 {[%emt 0:07:49]} Rad8 {[%emt 0:07:45]} 18. Qc2 {[%emt 0:03:19]} Rd7 {[%emt 0:02:09]} 19. Rfd1 {[%emt 0:05:49]} Rfd8 {[%emt 0:00:09]} 20. c5 {[%emt 0:00:11]} a6 {[%emt 0:10:32]} 21. a3 {[%emt 0:05:27]} Bg6 {[%emt 0:02:27]} 22. Qb3 {[%emt 0:02:04]} Bf7 {[%emt 0:00:05]} 23. Qc2 {[%emt 0:03:20]} Bg6 {[%emt 0:00:04]} 24. Qe2 {[%emt 0:00:26]} Bf7 {[%emt 0:01:20]} 25. Rxd7 {[%emt 0:06:58]} Rxd7 {[%emt 0:00:12]} 26. Na4 {[%emt 0:00:03]} Bxb2 {[%emt 0:00:42]} 27. Qxb2 {[%emt 0:00:04]} e5 {[%emt 0:00:53]} 28. Nb6 {[%emt 0:00:06]} Rd8 {[%emt 0:00:23]} 29. Nc4 {[%emt 0:00:07]} Bxc4 {[%emt 0:02:20]} 30. Rxc4 {[%emt 0:00:05]} Kf8 {[%emt 0:00:36]} 31. a4 {[%emt 0:04:22]} Qe7 {[%emt 0:01:20]} 32. b5 {[%emt 0:03:30]} axb5 {[%emt 0:00:23]} 33. axb5 {[%emt 0:00:07]} e4 {[%emt 0:00:12]} 34. Be2 {[%emt 0:00:38]} Nd7 {[%emt 0:00:19]} 35. Kg2 {[%emt 0:09:16]} Nxc5 {[%emt 0:02:31]} 36. bxc6 {[%emt 0:00:57]} bxc6 {[%emt 0:00:02]} 37. Qb4 {[%emt 0:00:52]} Nd7 {[%emt 0:00:26]} 38. Qxe7+ {[%emt 0:00:45]} Kxe7 {[%emt 0:00:01]} 39. Rxc6 {[%emt 0:00:35]} 1/2-1/2

[Event "Dutch Open-ch 2019"]
[Site "Dieren"]
[Date "2019.07.27"]
[Round "5.14"]
[White "Ashwath, R.."]
[Black "Baselmans, Sam"]
[Result "1/2-1/2"]
[ECO "E69"]
[WhiteElo "2365"]
[BlackElo "2064"]
[Annotator "NA RC"]
[PlyCount "41"]
[EventDate "2019.07.23"]
[EventType "swiss"]
[EventCountry "NED"]
[SourceTitle "playchess.com"]
[Source "ChessBase"]
[SourceQuality "1"]
[TimeControl "40/5400+30:1800+30"]

1. d4 {[%emt 0:04:23]} Nf6 {[%emt 0:00:00]} 2. c4 {[%emt 0:00:05]} g6 {[%emt 0:00:00]} 3. g3 {[%emt 0:00:09]} Bg7 {[%emt 0:00:00]} 4. Bg2 {[%emt 0:00:03]} d6 {[%emt 0:00:00]} 5. Nc3 {[%emt 0:00:16]} O-O {[%emt 0:00:01]} 6. Nf3 {[%emt 0:00:04]} c6 {[%emt 0:00:18]} 7. O-O {[%emt 0:00:39]} Qa5 {[%emt 0:00:27]} 8. e4 {[%emt 0:00:49]} e5 {[%emt 0:00:08]} 9. h3 {[%emt 0:06:52]} Nbd7 {[%emt 0:00:12]} 10. d5 {[%emt 0:07:12]} cxd5 {[%emt 0:02:07]} 11. cxd5 {[%emt 0:00:14]} b5 {[%emt 0:00:45]} 12. Nd2 {[%emt 0:16:42]} Qb6 {[%emt 0:13:14]} 13. a3 {[%emt 0:07:52]} a5 {[%emt 0:06:34]} 14. a4 {[%emt 0:02:13]} Ba6 {[%emt 0:08:34]} 15. axb5 {[%emt 0:01:58]} Bxb5 {[%emt 0:00:06]} 16. Nxb5 {[%emt 0:00:07]} Qxb5 {[%emt 0:00:07]} 17. b3 {[%emt 0:15:38]} Nc5 {[%emt 0:04:26]} 18. Ba3 {[%emt 0:00:45]} Nfd7 {[%emt 0:01:17]} 19. Re1 {[%emt 0:04:42]} f5 {[%emt 0:12:56]} 20. Bf1 {[%emt 0:04:02]} Qb8 {[%emt 0:00:34]} 21. Qe2 {[%emt 0:05:58]} 1/2-1/2

[Event "Dutch Open-ch 2019"]
[Site "Dieren"]
[Date "2019.07.27"]
[Round "5.15"]
[White "Wedda, Dries"]
[Black "Nicolai, Amir"]
[Result "1-0"]
[ECO "E11"]
[WhiteElo "2234"]
[BlackElo "2101"]
[Annotator "NA"]
[PlyCount "107"]
[EventDate "2019.07.23"]
[EventType "swiss"]
[EventCountry "NED"]
[SourceTitle "playchess.com"]
[Source "ChessBase"]
[SourceQuality "1"]
[TimeControl "40/5400+30:1800+30"]

1. d4 {[%emt 0:00:00]} Nf6 {[%emt 0:01:30]} 2. c4 {[%emt 0:00:00]} e6 {[%emt 0:00:12]} 3. Nf3 {[%emt 0:00:47]} d5 {[%emt 0:00:10]} 4. g3 {[%emt 0:00:05]} Bb4+ {[%emt 0:00:05]} 5. Bd2 {[%emt 0:00:06]} Be7 {[%emt 0:00:04]} 6. Bg2 {[%emt 0:00:03]} O-O {[%emt 0:00:04]} 7. O-O {[%emt 0:00:03]} Nbd7 {[%emt 0:00:05]} 8. Qc2 {[%emt 0:00:31]} Ne4 {[%emt 0:00:07]} 9. Nc3 {[%emt 0:09:56]} Nxd2 {[%emt 0:00:12]} 10. Nxd2 {[%emt 0:00:18]} c6 {[%emt 0:00:58]} 11. e4 {[%emt 0:01:33]} dxe4 {[%emt 0:00:09]} 12. Ncxe4 {[%emt 0:06:32]} b6 {[%emt 1:32:24]} 13. Rfd1 {[%emt 0:05:28]} Qc7 {[%emt 0:00:00]} 14. Rab1 {[%emt 0:15:10]} Bb7 {[%emt 0:00:00]} 15. b4 {[%emt 0:05:19]} e5 {[%emt 0:00:00]} 16. Nf3 {[%emt 0:17:28]} Rad8 {[%emt 0:00:00]} 17. c5 {[%emt 0:10:28]} h6 {[%emt 0:00:00]} 18. cxb6 {[%emt 0:06:43]} axb6 {[%emt 0:00:00]} 19. d5 {[%emt 0:00:10]} c5 {[%emt 0:00:00]} 20. d6 {[%emt 0:01:04]} Bxe4 {[%emt 0:00:00]} 21. dxc7 {[%emt 0:05:05]} Bxc2 {[%emt 0:00:00]} 22. cxd8=Q {[%emt 0:00:29]} Rxd8 {[%emt 0:00:00]} 23. bxc5 {[%emt 0:00:33]} bxc5 {[%emt 0:00:00]} 24. Nxe5 {[%emt 0:06:31]} Bxb1 {[%emt 0:00:00]} 25. Nc6 {[%emt 0:00:29]} Bc2 {[%emt 0:00:00]} 26. Rd2 {[%emt 0:01:40]} Re8 {[%emt 0:00:00]} 27. Nxe7+ {[%emt 0:01:59]} Rxe7 {[%emt 0:00:00]} 28. Rxc2 {[%emt 0:00:02]} Re1+ {[%emt 0:00:00]} 29. Bf1 {[%emt 0:00:01]} f6 {[%emt 0:00:00]} 30. Kg2 {[%emt 0:00:08]} Kf7 {[%emt 0:00:00]} 31. Bb5 {[%emt 0:00:39]} Ke6 {[%emt 0:00:00]} 32. a4 {[%emt 0:00:40]} Rd1 {[%emt 0:00:00]} 33. Bxd7+ {[%emt 0:03:15]} Rxd7 {[%emt 0:00:41]} 34. Rxc5 {[%emt 0:00:03]} Rd4 {[%emt 0:00:32]} 35. Ra5 {[%emt 0:01:58]} f5 {[%emt 0:00:49]} 36. Kf3 {[%emt 0:01:25]} Rd3+ {[%emt 0:00:38]} 37. Kg2 {[%emt 0:00:02]} Ra3 {[%emt 0:00:21]} 38. Ra7 {[%emt 0:00:45]} Kf6 {[%emt 0:00:31]} 39. a5 {[%emt 0:00:24]} g5 {[%emt 0:04:20]} 40. Ra6+ {[%emt 0:00:08]} Kg7 {[%emt 0:01:01]} 41. Ra8 {[%emt 0:04:46]} Ra1 {[%emt 0:03:23]} 42. a6 {[%emt 0:00:19]} g4 {[%emt 0:01:09]} 43. h3 {[%emt 0:04:29]} h5 {[%emt 0:00:57]} 44. hxg4 {[%emt 0:00:05]} hxg4 {[%emt 0:02:01]} 45. f4 {[%emt 0:01:53]} gxf3+ {[%emt 0:02:57]} 46. Kxf3 {[%emt 0:00:07]} Ra4 {[%emt 0:00:20]} 47. Ke3 {[%emt 0:00:41]} Kh7 {[%emt 0:00:17]} 48. Kd3 {[%emt 0:04:22]} Ra3+ {[%emt 0:00:32]} 49. Kd4 {[%emt 0:00:11]} Rxg3 {[%emt 0:01:45]} 50. Ke5 {[%emt 0:00:04]} Rf3 {[%emt 0:01:18]} 51. Kf6 {[%emt 0:02:28]} Rf1 {[%emt 0:02:09]} 52. Kg5 {[%emt 0:01:45]} f4 {[%emt 0:02:16]} 53. Ra7+ {[%emt 0:00:05]} Kg8 {[%emt 0:00:32]} 54. Rb7 {[%emt 0:00:09]} 1-0

[Event "Dutch Open-ch 2019"]
[Site "Dieren"]
[Date "2019.07.27"]
[Round "5.16"]
[White "Konings, Frans"]
[Black "Van Roon, Sjoerd"]
[Result "1-0"]
[ECO "E99"]
[WhiteElo "2208"]
[BlackElo "2072"]
[Annotator "NA"]
[PlyCount "109"]
[EventDate "2019.07.23"]
[EventType "swiss"]
[EventCountry "NED"]
[SourceTitle "playchess.com"]
[Source "ChessBase"]
[SourceQuality "1"]
[TimeControl "40/5400+30:1800+30"]

1. d4 {[%emt 0:00:00]} Nf6 {[%emt 0:00:00]} 2. c4 {[%emt 0:01:08]} g6 {[%emt 0:00:00]} 3. Nc3 {[%emt 0:00:14]} Bg7 {[%emt 0:00:00]} 4. e4 {[%emt 0:00:07]} d6 {[%emt 0:00:42]} 5. Nf3 {[%emt 0:00:05]} O-O {[%emt 0:00:08]} 6. Be2 {[%emt 0:00:04]} e5 {[%emt 0:01:23]} 7. O-O {[%emt 0:00:08]} Nc6 {[%emt 0:00:45]} 8. d5 {[%emt 0:00:07]} Ne7 {[%emt 0:00:10]} 9. Ne1 {[%emt 0:00:06]} Nd7 {[%emt 0:02:08]} 10. f3 {[%emt 0:01:14]} f5 {[%emt 0:00:48]} 11. g4 {[%emt 0:00:08]} Nf6 {[%emt 0:02:37]} 12. Be3 {[%emt 0:01:18]} a5 {[%emt 0:04:34]} 13. Nd3 {[%emt 0:00:45]} b6 {[%emt 0:01:18]} 14. h3 {[%emt 0:00:41]} Bd7 {[%emt 0:01:24]} 15. Kg2 {[%emt 0:00:49]} Qc8 {[%emt 0:17:35]} 16. Nf2 {[%emt 0:05:42]} h6 {[%emt 0:04:25]} 17. Qc1 {[%emt 0:01:36]} Kh7 {[%emt 0:11:28]} 18. b3 {[%emt 0:01:06]} Nfg8 {[%emt 0:02:35]} 19. a3 {[%emt 0:03:28]} Bf6 {[%emt 0:02:38]} 20. b4 {[%emt 0:02:04]} f4 {[%emt 0:02:00]} 21. Bd2 {[%emt 0:00:06]} Bh4 {[%emt 0:00:05]} 22. Nd3 {[%emt 0:01:07]} h5 {[%emt 0:09:55]} 23. c5 {[%emt 0:02:58]} Nf6 {[%emt 0:02:08]} 24. c6 {[%emt 0:02:46]} Be8 {[%emt 0:00:04]} 25. Be1 {[%emt 0:01:24]} Bxe1 {[%emt 0:01:40]} 26. Qxe1 {[%emt 0:00:23]} g5 {[%emt 0:00:51]} 27. Nb2 {[%emt 0:01:11]} Ng6 {[%emt 0:00:32]} 28. Nc4 {[%emt 0:01:03]} Nh4+ {[%emt 0:00:21]} 29. Kg1 {[%emt 0:01:26]} hxg4 {[%emt 0:00:29]} 30. hxg4 {[%emt 0:02:35]} axb4 {[%emt 0:03:27]} 31. axb4 {[%emt 0:02:20]} Rxa1 {[%emt 0:00:05]} 32. Qxa1 {[%emt 0:00:04]} Nxg4 {[%emt 0:00:09]} 33. fxg4 {[%emt 0:00:23]} f3 {[%emt 0:00:10]} 34. Ne3 {[%emt 0:00:07]} Rf4 {[%emt 0:00:06]} 35. Ba6 {[%emt 0:01:58]} Rxg4+ {[%emt 0:05:24]} 36. Kf2 {[%emt 0:03:04]} Rg2+ {[%emt 0:00:43]} 37. Nxg2 {[%emt 0:00:04]} Qh3 {[%emt 0:00:29]} 38. Nxh4 {[%emt 0:00:27]} gxh4 {[%emt 0:00:13]} 39. Ke3 {[%emt 0:01:29]} Bh5 {[%emt 0:01:19]} 40. Rf2 {[%emt 0:00:09]} Qg3 {[%emt 0:00:34]} 41. Qf1 {[%emt 0:31:04]} h3 {[%emt 0:30:52]} 42. Bc8 {[%emt 0:00:19]} h2 {[%emt 0:00:19]} 43. Qh1 {[%emt 0:00:21]} Qg1 {[%emt 0:03:25]} 44. Qxh2 {[%emt 0:02:02]} Qg5+ {[%emt 0:00:41]} 45. Kd3 {[%emt 0:00:09]} Kg7 {[%emt 0:00:02]} 46. Bf5 {[%emt 0:00:42]} b5 {[%emt 0:01:10]} 47. Nxb5 {[%emt 0:01:01]} Qc1 {[%emt 0:01:09]} 48. Nc3 {[%emt 0:00:09]} Qg5 {[%emt 0:01:49]} 49. b5 {[%emt 0:00:14]} Kh6 {[%emt 0:01:32]} 50. b6 {[%emt 0:00:22]} Qd8 {[%emt 0:00:44]} 51. b7 {[%emt 0:00:17]} Qb8 {[%emt 0:00:08]} 52. Qh4 {[%emt 0:00:10]} Qf8 {[%emt 0:00:30]} 53. b8=Q {[%emt 0:00:14]} Qg8 {[%emt 0:00:11]} 54. Qf6+ {[%emt 0:00:20]} Bg6 {[%emt 0:00:04]} 55. Rh2# {[%emt 0:02:12]} 1-0

[Event "Dutch Open-ch 2019"]
[Site "Dieren"]
[Date "2019.07.27"]
[Round "5.17"]
[White "Nair, Sanjeev"]
[Black "Evengroen, Henk-Jan"]
[Result "1-0"]
[ECO "C55"]
[WhiteElo "2045"]
[BlackElo "2176"]
[Annotator "NA"]
[PlyCount "77"]
[EventDate "2019.07.23"]
[EventType "swiss"]
[EventCountry "NED"]
[SourceTitle "playchess.com"]
[Source "ChessBase"]
[SourceQuality "1"]
[TimeControl "40/5400+30:1800+30"]

1. e4 {[%emt 0:00:00]} e5 {[%emt 0:00:00]} 2. Nf3 {[%emt 0:00:00]} Nc6 {[%emt 0:00:00]} 3. Bc4 {[%emt 0:00:00]} Nf6 {[%emt 0:00:00]} 4. d3 {[%emt 0:00:03]} Be7 {[%emt 0:00:04]} 5. O-O {[%emt 0:00:19]} O-O {[%emt 0:00:33]} 6. Re1 {[%emt 0:00:14]} d6 {[%emt 0:03:32]} 7. a4 {[%emt 0:00:18]} Kh8 {[%emt 0:01:14]} 8. a5 {[%emt 0:01:41]} a6 {[%emt 0:01:19]} 9. c3 {[%emt 0:02:45]} Bg4 {[%emt 0:03:08]} 10. h3 {[%emt 0:01:45]} Bh5 {[%emt 0:00:43]} 11. Nbd2 {[%emt 0:03:14]} d5 {[%emt 0:03:48]} 12. exd5 {[%emt 0:04:55]} Nxd5 {[%emt 0:01:03]} 13. Ne4 {[%emt 0:02:44]} b5 {[%emt 0:35:22]} 14. axb6 {[%emt 0:04:07]} Nxb6 {[%emt 0:01:23]} 15. Rxa6 {[%emt 0:10:05]} Nxc4 {[%emt 0:02:01]} 16. Rxa8 {[%emt 0:00:13]} Qxa8 {[%emt 0:00:05]} 17. dxc4 {[%emt 0:00:11]} f5 {[%emt 0:08:57]} 18. Ng3 {[%emt 0:03:34]} Bg6 {[%emt 0:00:45]} 19. Nxe5 {[%emt 0:17:16]} Nxe5 {[%emt 0:00:17]} 20. Rxe5 {[%emt 0:00:07]} Bd6 {[%emt 0:00:16]} 21. Rd5 {[%emt 0:04:47]} f4 {[%emt 0:22:01]} 22. Nh5 {[%emt 0:02:30]} Bf7 {[%emt 0:05:12]} 23. Rg5 {[%emt 0:22:28]} Qe4 {[%emt 0:04:50]} 24. c5 {[%emt 0:01:57]} Be7 {[%emt 0:02:29]} 25. f3 {[%emt 0:01:54]} Qc4 {[%emt 0:00:21]} 26. Re5 {[%emt 0:02:41]} Rd8 {[%emt 0:00:52]} 27. Qe1 {[%emt 0:00:49]} Bxc5+ {[%emt 0:01:13]} 28. Kh2 {[%emt 0:00:15]} Bd6 {[%emt 0:00:18]} 29. Re4 {[%emt 0:01:25]} Qb5 {[%emt 0:00:43]} 30. Qh4 {[%emt 0:03:26]} Rg8 {[%emt 0:01:11]} 31. g4 {[%emt 0:02:48]} fxg3+ {[%emt 0:00:17]} 32. Nxg3 {[%emt 0:00:06]} Qf1 {[%emt 0:00:17]} 33. Be3 {[%emt 0:01:41]} g5 {[%emt 0:01:18]} 34. Bd4+ {[%emt 0:01:00]} Rg7 {[%emt 0:00:06]} 35. Bxg7+ {[%emt 0:02:14]} Kg8 {[%emt 0:00:04]} 36. Qxg5 {[%emt 0:00:28]} Qf2+ {[%emt 0:00:30]} 37. Kh1 {[%emt 0:00:08]} Qxf3+ {[%emt 0:00:04]} 38. Kg1 {[%emt 0:00:05]} Bg6 {[%emt 0:01:33]} 39. Qd5+ {[%emt 0:01:08]} 1-0

[Event "Dutch Open-ch 2019"]
[Site "Dieren"]
[Date "2019.07.27"]
[Round "5.18"]
[White "Munshi, Aditya"]
[Black "Van Hoorn, Geert"]
[Result "1-0"]
[ECO "B52"]
[WhiteElo "2125"]
[BlackElo "2010"]
[Annotator "NA"]
[PlyCount "74"]
[EventDate "2019.07.23"]
[EventType "swiss"]
[EventCountry "NED"]
[SourceTitle "playchess.com"]
[Source "ChessBase"]
[SourceQuality "1"]
[TimeControl "40/5400+30:1800+30"]

1. e4 {[%emt 0:00:00]} c5 {[%emt 0:00:00]} 2. Nf3 {[%emt 0:00:00]} d6 {[%emt 0:00:00]} 3. Bb5+ {[%emt 0:00:47]} Bd7 {[%emt 0:00:00]} 4. Bxd7+ {[%emt 0:00:06]} Qxd7 {[%emt 0:00:00]} 5. c4 {[%emt 0:00:06]} e5 {[%emt 0:00:00]} 6. Nc3 {[%emt 0:00:24]} g6 {[%emt 0:00:14]} 7. O-O {[%emt 0:01:05]} Bg7 {[%emt 0:00:10]} 8. a3 {[%emt 0:01:16]} Ne7 {[%emt 0:01:06]} 9. b4 {[%emt 0:04:12]} O-O {[%emt 0:02:11]} 10. bxc5 {[%emt 0:05:19]} dxc5 {[%emt 0:00:12]} 11. d3 {[%emt 0:00:51]} Nbc6 {[%emt 0:01:35]} 12. Nd5 {[%emt 0:00:40]} f5 {[%emt 0:00:29]} 13. Bg5 {[%emt 0:00:43]} Nxd5 {[%emt 0:02:03]} 14. cxd5 {[%emt 0:00:51]} Nd4 {[%emt 0:00:22]} 15. Nxd4 {[%emt 0:25:26]} exd4 {[%emt 0:01:11]} 16. Qb3 {[%emt 0:09:40]} fxe4 {[%emt 0:08:48]} 17. dxe4 {[%emt 0:00:29]} b5 {[%emt 0:00:27]} 18. a4 {[%emt 0:05:12]} a6 {[%emt 0:03:41]} 19. axb5 {[%emt 0:03:32]} axb5 {[%emt 0:00:20]} 20. Rxa8 {[%emt 0:01:12]} Rxa8 {[%emt 0:00:08]} 21. d6+ {[%emt 0:04:48]} c4 {[%emt 0:09:06]} 22. Qb4 {[%emt 0:00:50]} Be5 {[%emt 0:05:48]} 23. Be7 {[%emt 0:06:12]} Qc6 {[%emt 0:24:55]} 24. f4 {[%emt 0:03:58]} Bg7 {[%emt 0:06:51]} 25. f5 {[%emt 0:01:08]} gxf5 {[%emt 0:06:18]} 26. exf5 {[%emt 0:00:25]} Ra2 {[%emt 0:02:12]} 27. Rf2 {[%emt 0:00:12]} Ra1+ {[%emt 0:00:25]} 28. Rf1 {[%emt 0:00:02]} d3 {[%emt 0:03:47]} 29. Rxa1 {[%emt 0:02:58]} Bxa1 {[%emt 0:00:16]} 30. Qa5 {[%emt 0:00:47]} Bd4+ {[%emt 0:00:51]} 31. Kf1 {[%emt 0:10:34]} Bb6 {[%emt 0:00:19]} 32. Qd2 {[%emt 0:05:52]} Kf7 {[%emt 0:13:21]} 33. Qg5 {[%emt 0:01:50]} d2 {[%emt 0:01:33]} 34. Qh5+ {[%emt 0:02:49]} Kg8 {[%emt 0:00:17]} 35. Qg5+ {[%emt 0:01:01]} Kf7 {[%emt 0:00:06]} 36. Qh5+ {[%emt 0:00:45]} Kg8 {[%emt 0:00:06]} 37. d7 {[%emt 0:01:48]} d1=Q+ {[%emt 0:06:22]} 1-0

[Event "Dutch Open-ch 2019"]
[Site "Dieren"]
[Date "2019.07.27"]
[Round "5.19"]
[White "Ypma, Jord"]
[Black "Van Baar, Esper"]
[Result "1/2-1/2"]
[ECO "E62"]
[WhiteElo "1968"]
[BlackElo "2108"]
[Annotator "NA"]
[PlyCount "44"]
[EventDate "2019.07.23"]
[EventType "swiss"]
[EventCountry "NED"]
[SourceTitle "playchess.com"]
[Source "ChessBase"]
[SourceQuality "1"]
[TimeControl "40/5400+30:1800+30"]

1. d4 {[%emt 0:00:00]} Nf6 {[%emt 0:00:00]} 2. c4 {[%emt 0:00:00]} g6 {[%emt 0:00:14]} 3. g3 {[%emt 0:00:15]} Bg7 {[%emt 0:00:04]} 4. Bg2 {[%emt 0:00:05]} O-O {[%emt 0:00:10]} 5. Nc3 {[%emt 0:00:27]} d6 {[%emt 0:00:06]} 6. Nf3 {[%emt 0:00:29]} c6 {[%emt 0:00:14]} 7. O-O {[%emt 0:00:51]} Bf5 {[%emt 0:01:05]} 8. Ne1 {[%emt 0:01:31]} Be6 {[%emt 0:00:21]} 9. d5 {[%emt 0:01:09]} cxd5 {[%emt 0:00:05]} 10. cxd5 {[%emt 0:00:34]} Bd7 {[%emt 0:00:21]} 11. Nd3 {[%emt 0:03:34]} a5 {[%emt 0:03:02]} 12. a4 {[%emt 0:08:07]} Na6 {[%emt 0:01:17]} 13. Qb3 {[%emt 0:02:33]} b6 {[%emt 0:04:40]} 14. e4 {[%emt 0:05:08]} Ng4 {[%emt 0:03:21]} 15. h3 {[%emt 0:04:52]} Ne5 {[%emt 0:00:27]} 16. Nxe5 {[%emt 0:00:21]} Bxe5 {[%emt 0:00:05]} 17. Bh6 {[%emt 0:00:29]} Re8 {[%emt 0:02:46]} 18. f4 {[%emt 0:02:01]} Bd4+ {[%emt 0:02:11]} 19. Kh2 {[%emt 0:00:39]} Rc8 {[%emt 0:03:43]} 20. Qd1 {[%emt 0:15:04]} Bh8 {[%emt 0:02:23]} 21. Qf3 {[%emt 0:03:00]} Nc5 {[%emt 0:22:31]} 22. f5 {[%emt 0:10:25]} gxf5 {[%emt 0:08:40]} 1/2-1/2

[Event "Dutch Open-ch 2019"]
[Site "Dieren"]
[Date "2019.07.27"]
[Round "5.20"]
[White "Van Helvoort, Rob"]
[Black "Ochs, Daniel Elias"]
[Result "1/2-1/2"]
[ECO "A47"]
[WhiteElo "2104"]
[BlackElo "2005"]
[Annotator "NA"]
[PlyCount "23"]
[EventDate "2019.07.23"]
[EventType "swiss"]
[EventCountry "NED"]
[SourceTitle "playchess.com"]
[Source "ChessBase"]
[SourceQuality "1"]
[TimeControl "40/5400+30:1800+30"]

1. d4 {[%emt 0:05:13]} d5 {[%emt 0:00:00]} 2. Nf3 {[%emt 0:00:03]} Nf6 {[%emt 0:00:00]} 3. e3 {[%emt 0:00:05]} e6 {[%emt 0:00:01]} 4. Bd3 {[%emt 0:00:04]} Be7 {[%emt 0:00:55]} 5. O-O {[%emt 0:00:12]} O-O {[%emt 0:00:10]} 6. b3 {[%emt 0:00:20]} b6 {[%emt 0:00:53]} 7. Bb2 {[%emt 0:00:25]} Bb7 {[%emt 0:00:23]} 8. Ne5 {[%emt 0:01:14]} Nbd7 {[%emt 0:01:54]} 9. f4 {[%emt 0:00:59]} Ne4 {[%emt 0:05:57]} 10. Nxd7 {[%emt 0:03:48]} Qxd7 {[%emt 0:00:13]} 11. Nd2 {[%emt 0:00:05]} Nxd2 {[%emt 0:06:48]} 12. Qxd2 {[%emt 0:01:01]} 1/2-1/2

[Event "Dutch Open-ch 2019"]
[Site "Dieren"]
[Date "2019.07.29"]
[Round "6.1"]
[White "Schoppen, Casper"]
[Black "Beerdsen, Thomas"]
[Result "1-0"]
[ECO "E90"]
[WhiteElo "2493"]
[BlackElo "2497"]
[Annotator "ChessBase"]
[PlyCount "88"]
[EventDate "2019.07.23"]
[EventType "swiss"]
[EventCountry "NED"]
[SourceTitle "playchess.com"]
[Source "ChessBase"]
[SourceQuality "1"]
[TimeControl "40/5400+30:1800+30"]

1. d4 {[%emt 0:00:00]} Nf6 {[%emt 0:01:03]} 2. c4 {[%emt 0:00:00]} g6 {[%emt 0:00:05]} 3. Nc3 {[%emt 0:00:00]} Bg7 {[%emt 0:00:05]} 4. e4 {[%emt 0:00:02]} d6 {[%emt 0:00:05]} 5. h3 {[%emt 0:00:05]} O-O {[%emt 0:00:08]} 6. Be3 {[%emt 0:00:04]} Nc6 {[%emt 0:00:05]} 7. Nf3 {[%emt 0:01:24]} e5 {[%emt 0:00:18]} 8. d5 {[%emt 0:00:49]} Nd4 {[%emt 0:00:04]} 9. Nxd4 {[%emt 0:36:48]} exd4 {[%emt 0:01:54]} 10. Bxd4 {[%emt 0:00:06]} Nxe4 {[%emt 0:00:04]} 11. Nxe4 {[%emt 0:00:15]} Qh4 {[%emt 0:00:21]} 12. g4 {[%emt 0:06:38]} Re8 {[%emt 0:00:30]} 13. Bg2 {[%emt 0:00:11]} Bf5 {[%emt 0:00:13]} 14. O-O {[%emt 0:03:53]} Bxe4 {[%emt 0:00:39]} 15. Bxg7 {[%emt 0:04:12]} Bxg2 {[%emt 0:00:48]} 16. Kxg2 {[%emt 0:00:04]} Kxg7 {[%emt 0:00:09]} 17. Qd4+ {[%emt 0:00:08]} Qf6 {[%emt 0:01:14]} 18. Qxf6+ {[%emt 0:00:06]} Kxf6 {[%emt 0:00:03]} 19. Rfe1 {[%emt 0:00:08]} g5 {[%emt 0:05:42]} 20. Kg3 {[%emt 0:01:00]} Kg6 {[%emt 0:01:37]} 21. f4 {[%emt 0:00:27]} f5 {[%emt 0:03:42]} 22. fxg5 {[%emt 0:01:44]} Kxg5 {[%emt 0:00:16]} 23. h4+ {[%emt 0:00:04]} Kg6 {[%emt 0:00:04]} 24. g5 {[%emt 0:01:41]} Re5 {[%emt 0:01:15]} 25. Rxe5 {[%emt 0:00:15]} dxe5 {[%emt 0:00:05]} 26. Rd1 {[%emt 0:00:53]} Rd8 {[%emt 0:04:27]} 27. c5 {[%emt 0:00:44]} h6 {[%emt 0:31:02]} 28. gxh6 {[%emt 0:01:56]} Kxh6 {[%emt 0:03:19]} 29. d6 {[%emt 0:25:35]} Rg8+ {[%emt 0:14:09]} 30. Kf3 {[%emt 0:00:19]} cxd6 {[%emt 0:00:13]} 31. Rxd6+ {[%emt 0:00:26]} Kh5 {[%emt 0:01:07]} 32. Rf6 {[%emt 0:00:23]} e4+ {[%emt 0:04:58]} 33. Kf4 {[%emt 0:00:07]} Rg2 {[%emt 0:00:17]} 34. Rxf5+ {[%emt 0:01:22]} Kxh4 {[%emt 0:01:52]} 35. b4 {[%emt 0:00:53]} Rxa2 {[%emt 0:01:43]} 36. Rd5 {[%emt 0:01:24]} Rf2+ {[%emt 0:22:13]} 37. Kxe4 {[%emt 0:01:06]} Re2+ {[%emt 0:00:55]} 38. Kd3 {[%emt 0:01:34]} Re7 {[%emt 0:00:34]} 39. b5 {[%emt 0:02:05]} Kg4 {[%emt 0:01:05]} 40. Kd4 {[%emt 0:04:28]} Kf4 {[%emt 0:01:05]} 41. c6 {[%emt 0:31:30]} b6 {[%emt 0:01:06]} 42. Rd7 {[%emt 0:00:00]} Re4+ {[%emt 0:00:48]} 43. Kd5 {[%emt 0:00:00]} Re5+ {[%emt 0:00:06]} 44. Kd6 {[%emt 0:00:00]} Rxb5 {[%emt 0:00:10]} 1-0